fUST/lending_fUST_20250308
["ID","MTS","AMOUNT","RATE_DAILY","PERIOD"]
[355607941,1741365042734,-999.0,0.00046027,120]
[355607942,1741365042744,-151.0,0.000462,24]
[355607943,1741365042754,-540.0,0.00046219,2]
[355607944,1741365042763,-1951.0,0.00046219,2]
[355607945,1741365042775,-2275.0,0.00046219,2]
[355607946,1741365042785,-398.0,0.00046219,2]
[355607948,1741365042795,-700.0,0.00046295,30]
[355607949,1741365042804,-153.76,0.000463,39]
[355607950,1741365042814,-153.76,0.000463,39]
[355607951,1741365042824,-500.0,0.00046532,2]
[355607952,1741365042833,-4365.45832595,0.00046565,4]
[355607953,1741365042843,-607.33,0.00046575,7]
[355607954,1741365042853,-999.0,0.00046575,120]
[355607955,1741365042862,-500.0,0.00046575,10]
[355607956,1741365042871,-400.0,0.00046575,10]
[355607957,1741365042882,-160.0,0.00046679,5]
[355607958,1741365042891,-700.0,0.00046697,30]
[355607959,1741365042901,-700.0,0.00046908,30]
[355607960,1741365042910,-1289.0,0.00047,120]
[355607961,1741365042920,-607.33,0.00047123,7]
[355607962,1741365042929,-999.0,0.00047123,120]
[355607963,1741365042938,-454.17031453,0.00047123,10]
[355607964,1741365042948,-200.0,0.00047192,120]
[355607965,1741365042957,-200.0,0.00047247,120]
[355607966,1741365042967,-200.0,0.00047406,120]
[355607967,1741365042977,-200.0,0.00047584,120]
[355607968,1741365042986,-607.33,0.00047671,7]
[355607969,1741365042996,-999.0,0.00047671,120]
[355607970,1741365043005,-200.0,0.00047673,120]
[355607971,1741365043014,-284.6,0.000477,30]
[355607972,1741365043025,-200.0,0.00047752,120]
[355607973,1741365043035,-200.0,0.00047759,120]
[355607974,1741365043044,-200.0,0.00047824,120]
[355607975,1741365043054,-1300.0,0.0004783,30]
[355607976,1741365043063,-279.53635,0.00047848,2]
[355607977,1741365043072,-148083.86650753,0.000479,120]
[355607978,1741365043082,-219.0,0.00047926,90]
[355607979,1741365043091,-888.0,0.00047945,30]
[355607980,1741365043101,-888.0,0.00047945,30]
[355607981,1741365043110,-888.0,0.00047945,30]
[355607982,1741365043120,-888.0,0.00047945,30]
[355607983,1741365043129,-888.0,0.00047945,30]
[355607984,1741365043139,-888.0,0.00047945,30]
[355607985,1741365043148,-888.0,0.00047945,30]
[355607986,1741365043158,-888.0,0.00047945,30]
[355607987,1741365043167,-888.0,0.00047945,30]
[355607988,1741365043176,-888.0,0.00047945,30]
[355607989,1741365043186,-888.0,0.00047945,30]
[355607990,1741365043196,-888.0,0.00047945,30]
[355607991,1741365043205,-888.0,0.00047945,30]
[355607992,1741365043215,-556.25034647,0.00047945,30]
[355607993,1741365043225,-34923.6666076,0.0004799,4]
[355607994,1741365043234,-1000.0,0.00048,30]
[355607995,1741365043244,-1000.0,0.00048,30]
[355607996,1741365043253,-1986.37260345,0.00048,120]
[355607997,1741365043263,-29292.11480278,0.00048,120]
[355607998,1741365043272,-1000.0,0.00048,120]
[355607999,1741365043284,-3040.0,0.00048,120]
[355608000,1741365043293,-2000.0,0.00048,120]
[355608001,1741365043303,-20000.0,0.00048,2]
[355608002,1741365043313,-150.0,0.00048,120]
[355608003,1741365043325,-493303.79904824,0.00048,120]
[355608004,1741365043334,-3795.57648265,0.00048,3]
[355608005,1741365043344,-2901.27623689,0.00048,120]
[355608006,1741365043354,-6044.07318966,0.00048,30]
[355608007,1741365043363,-151.0,0.00048,120]
[355608008,1741365043373,-200.0,0.00048068,120]
[355608009,1741365043383,-560.23398888,0.00048129,91]
[355608010,1741365043392,-200.0,0.00048151,120]
[355608011,1741365043401,-607.33,0.00048219,7]
[355608012,1741365043411,-999.0,0.00048219,120]
[355608013,1741365043420,-560.23398888,0.00048229,97]
[355608014,1741365043430,-348.47,0.000483,30]
[355608015,1741365043439,-560.23398888,0.00048329,98]
[355608016,1741365043449,-219.0,0.00048329,90]
[355608017,1741365043458,-800.0,0.00048388,14]
[355608018,1741365043468,-560.23398888,0.00048429,99]
[355608019,1741365043478,-200.0,0.00048486,120]
[355608020,1741365043490,-1000.0,0.000485,30]
[355608021,1741365043499,-2000.0,0.000485,120]
[355608022,1741365043508,-12159.3272132,0.00048514,120]
[355608023,1741365043518,-12159.3272132,0.00048515,120]
[355608024,1741365043530,-800.0,0.00048519,14]
[355608025,1741365043539,-12159.3272132,0.00048524,120]
[355608026,1741365043549,-560.23398888,0.00048529,95]
[355608027,1741365043560,-12159.3272132,0.00048535,120]
[355608028,1741365043570,-560.23398888,0.00048629,98]
[355608029,1741365043579,-560.23398888,0.00048729,91]
[355608030,1741365043589,-607.33,0.00048767,7]
[355608031,1741365043598,-999.0,0.00048767,120]
[355608032,1741365043608,-560.23398888,0.00048829,94]
[355608033,1741365043618,-560.23398888,0.00048929,94]
[355608034,1741365043627,-200.0,0.00048941,120]
[355608035,1741365043637,-1000.0,0.00049,30]
[355608036,1741365043647,-1000.0,0.00049,30]
[355608037,1741365043657,-580.70389101,0.00049,120]
[355608038,1741365043667,-1839.5539622,0.00049,120]
[355608039,1741365043676,-1000.0,0.00049,120]
[355608040,1741365043686,-300.0,0.00049,5]
[355608041,1741365043695,-10392.46336024,0.00049,120]
[355608042,1741365043704,-2000.0,0.00049,120]
[355608043,1741365043713,-3727.57314171,0.00049,30]
[355608044,1741365043722,-3727.57314171,0.00049,30]
[355608045,1741365043732,-2107.07564831,0.00049,120]
[355608046,1741365043741,-90048.90559279,0.00049,30]
[355608047,1741365043752,-90048.90559279,0.00049,30]
[355608048,1741365043761,-560.23398888,0.00049029,98]
[355608049,1741365043771,-800.0,0.00049061,14]
[355608050,1741365043782,-200.0,0.00049116,120]
[355608051,1741365043791,-1283.06683,0.0004912,21]
[355608052,1741365043801,-560.23398888,0.00049129,96]
[355608053,1741365043811,-1000.0,0.0004914,21]
[355608054,1741365043820,-1000.0,0.0004916,21]
[355608055,1741365043834,-1000.0,0.0004918,21]
[355608056,1741365043844,-240.0,0.000492,120]
[355608057,1741365043853,-1000.0,0.000492,21]
[355608058,1741365043863,-153.76,0.000492,45]
[355608059,1741365043872,-153.76,0.000492,45]
[355608060,1741365043882,-153.76,0.000492,45]
[355608062,1741365043891,-153.76,0.000492,45]
[355608063,1741365043901,-153.76,0.000492,45]
[355608064,1741365043910,-153.76,0.000492,45]
[355608065,1741365043920,-153.76,0.000492,45]
[355608066,1741365043930,-153.76,0.000492,45]
[355608067,1741365043939,-539.0,0.00049219,2]
[355608068,1741365043948,-1951.0,0.00049219,2]
[355608069,1741365043958,-2275.0,0.00049219,2]
[355608070,1741365043967,-197.058,0.00049219,2]
[355608071,1741365043976,-1000.0,0.0004922,21]
[355608072,1741365043986,-560.23398888,0.00049229,92]
[355608073,1741365043995,-810.70429918,0.00049231,14]
[355608074,1741365044004,-800.0,0.00049238,14]
[355608075,1741365044014,-1000.0,0.0004924,21]
[355608076,1741365044024,-800.0,0.00049259,14]
[355608077,1741365044035,-1000.0,0.0004926,21]
[355608078,1741365044044,-1500.0,0.00049271,10]
[355608079,1741365044054,-1500.0,0.00049271,10]
[355608080,1741365044064,-1000.0,0.0004928,21]
[355608081,1741365044074,-1072.177805,0.0004928,21]
[355608082,1741365044083,-200.0,0.00049289,120]
[355608083,1741365044093,-150.0,0.000493,120]
[355608084,1741365044103,-1000.0,0.000493,21]
[355608085,1741365044113,-1000.0,0.000493,21]
[355608086,1741365044122,-607.33,0.00049315,7]
[355608087,1741365044132,-500.0,0.00049315,120]
[355608088,1741365044141,-500.0,0.00049315,120]
[355608089,1741365044151,-500.0,0.00049315,120]
[355608090,1741365044161,-500.0,0.00049315,120]
[355608091,1741365044170,-500.0,0.00049315,120]
[355608092,1741365044179,-500.0,0.00049315,120]
[355608093,1741365044189,-500.0,0.00049315,120]
[355608094,1741365044198,-376.77978971,0.00049315,120]
[355608095,1741365044208,-999.0,0.00049315,120]
[355608096,1741365044219,-4441.96,0.00049315,120]
[355608097,1741365044229,-4441.96,0.00049315,120]
[355608098,1741365044239,-4441.96,0.00049315,120]
[355608099,1741365044251,-4441.96,0.00049315,120]
[355608100,1741365044263,-4441.96,0.00049315,120]
[355608101,1741365044278,-4441.96,0.00049315,120]
[355608102,1741365044290,-4441.96,0.00049315,120]
[355608103,1741365044302,-4441.96,0.00049315,120]
[355608104,1741365044313,-4441.96,0.00049315,120]
[355608105,1741365044326,-4441.96,0.00049315,120]
[355608106,1741365044336,-4441.96,0.00049315,120]
[355608107,1741365044347,-4441.96,0.00049315,120]
[355608108,1741365044358,-4441.96,0.00049315,120]
[355608109,1741365044369,-4441.96,0.00049315,120]
[355608110,1741365044381,-4441.96,0.00049315,120]
[355608111,1741365044392,-4441.96,0.00049315,120]
[355608112,1741365044408,-4441.96,0.00049315,120]
[355608113,1741365044420,-4441.96,0.00049315,120]
[355608114,1741365044430,-4441.96,0.00049315,120]
[355608115,1741365044442,-4441.96,0.00049315,120]
[355608116,1741365044452,-4441.96,0.00049315,120]
[355608117,1741365044464,-4441.96,0.00049315,120]
[355608118,1741365044477,-4441.96,0.00049315,120]
[355608119,1741365044492,-4441.98580263,0.00049315,120]
[355608120,1741365044503,-150.0,0.00049315,10]
[355608121,1741365044515,-1000.0,0.00049315,30]
[355608122,1741365044533,-560.23398888,0.00049329,90]
[355608123,1741365044543,-646.6929635,0.0004933,23]
[355608124,1741365044555,-800.0,0.00049357,30]
[355608125,1741365044566,-800.0,0.00049364,30]
[355608126,1741365044579,-800.0,0.00049376,30]
[355608127,1741365044589,-500.0,0.00049392,2]
[355608128,1741365044601,-150.36,0.00049392,30]
[355608129,1741365044611,-150.36,0.00049392,30]
[355608130,1741365044622,-800.0,0.00049396,30]
[355608131,1741365044634,-9402.63397407,0.00049405,2]
[355608132,1741365044644,-150.36,0.00049419,30]
[355608133,1741365044656,-150.36,0.00049419,30]
[355608134,1741365044666,-560.23398888,0.00049429,98]
[355608135,1741365044676,-800.0,0.00049429,30]
[355608136,1741365044687,-800.0,0.0004944,30]
[355608137,1741365044698,-192.14205512,0.00049447,30]
[355608138,1741365044710,-150.36,0.00049447,30]
[355608139,1741365044722,-297.92,0.00049474,30]
[355608140,1741365044734,-200.0,0.00049482,120]
[355608141,1741365044745,-800.0,0.00049495,30]
[355608142,1741365044755,-156.58,0.000495,120]
[355608143,1741365044767,-238.96,0.000495,30]
[355608144,1741365044780,-151.0,0.00049503,120]
[355608145,1741365044790,-151.0,0.00049505,120]
[355608146,1741365044801,-153.764897,0.00049505,120]
[355608147,1741365044812,-151.848185,0.00049505,90]
[355608148,1741365044823,-151.0,0.00049505,120]
[355608149,1741365044835,-151.0,0.00049505,120]
[355608150,1741365044845,-151.0,0.00049505,120]
[355608151,1741365044856,-151.0,0.00049505,120]
[355608152,1741365044867,-151.0,0.00049505,120]
[355608153,1741365044879,-151.0,0.00049505,120]
[355608154,1741365044890,-2350.0,0.00049505,120]
[355608155,1741365044901,-2350.0,0.00049505,120]
[355608156,1741365044914,-151.0,0.00049505,120]
[355608157,1741365044926,-86511.12468139,0.00049505,20]
[355608158,1741365045078,-500.0,0.00029973,5]
[355608159,1741365045089,-1429.7124,0.00033778,2]
[355608160,1741365045102,-1262.33966372,0.00033778,2]
[355608161,1741365045112,-1000.0,0.00035452,5]
[355608162,1741365045122,-11437.66033653,0.00049505,20]
[355608163,1741365045133,-10406.97701591,0.00049505,20]
[355608164,1741365045146,-80609.48899767,0.00049505,20]
[355608165,1741365045158,-1546.78600054,0.00049505,20]
[355608166,1741365045230,-33.11173843,0.00049505,20]
[355608167,1741365045242,-937.3494873,0.00049505,20]
[355608168,1741365045254,-1451.024561,0.00049505,20]
[355608169,1741365045266,-8156.24548497,0.00049505,20]
[355608183,1741365045871,-2692.05206372,0.00046739,2]
[355608184,1741365045881,-32247.94793628,0.00049505,20]
[355608185,1741365045894,-2064.39999998,0.00049505,20]
[355608271,1741366235788,-5000.0,0.00024113,20]
[355608272,1741366235799,-203.38747373,0.00024602,4]
[355608273,1741366235809,-300.0,0.00024702,2]
[355608274,1741366235818,-6500.0,0.00024703,120]
[355608275,1741366235827,-161.23,0.00025731,2]
[355608276,1741366235836,-4256.60570681,0.00025741,2]
[355608278,1741366235849,-4373.16254284,0.00025741,2]
[355608285,1741366236013,-260.483648,0.00025741,2]
[355608305,1741366238122,-1109.74810235,0.00025741,2]
[355608306,1741366238131,-24900.0,0.00025741,2]
[355608307,1741366238141,-500.0,0.00025773,2]
[355608308,1741366238151,-500.0,0.00025773,2]
[355608309,1741366238160,-500.0,0.00025773,2]
[355608310,1741366238169,-500.0,0.00025773,2]
[355608311,1741366238179,-420.0,0.00026769,2]
[355608312,1741366238188,-587.0,0.00029008,2]
[355608313,1741366238198,-416.66666667,0.00029716,2]
[355608314,1741366238208,-150.0,0.00029999,2]
[355608315,1741366238217,-1000.0,0.00031252,2]
[355608316,1741366238229,-513.40747679,0.00031252,5]
[355608317,1741366238238,-539.0,0.00034293,2]
[355608318,1741366238247,-1951.0,0.00034293,2]
[355608319,1741366238257,-2275.0,0.00034293,2]
[355608320,1741366238267,-250.0,0.00034293,2]
[355608321,1741366238277,-295.88347012,0.000343,5]
[355608322,1741366238286,-150.0,0.000348,2]
[355608323,1741366238296,-500.0,0.0003589,2]
[355608324,1741366238306,-1433.91602874,0.000362,98]
[355608325,1741366238316,-942.83505732,0.00036606,2]
[355608326,1741366238326,-1433.91602871,0.00036706,101]
[355608327,1741366238335,-1951.0,0.00037293,2]
[355608328,1741366238345,-2275.0,0.00037293,2]
[355608329,1741366238354,-150.0,0.00037293,2]
[355608330,1741366238364,-153.83,0.00038,31]
[355608331,1741366238374,-2136.8,0.00038356,30]
[355608332,1741366238383,-500.0,0.00038356,30]
[355608333,1741366238393,-500.0,0.00038356,30]
[355608334,1741366238402,-500.0,0.00038356,30]
[355608335,1741366238413,-500.0,0.00038356,30]
[355608336,1741366238422,-500.0,0.00038356,30]
[355608337,1741366238432,-500.0,0.00038356,30]
[355608338,1741366238442,-500.0,0.00038356,30]
[355608339,1741366238451,-647.96,0.00038356,30]
[355608340,1741366238462,-540.48930749,0.00038356,30]
[355608341,1741366238473,-500.0,0.00038356,30]
[355608342,1741366238485,-500.0,0.00038356,30]
[355608343,1741366238496,-500.0,0.00038356,30]
[355608344,1741366238506,-500.0,0.00038356,30]
[355608345,1741366238516,-339.95639966,0.00038356,30]
[355608346,1741366238527,-500.0,0.00038356,30]
[355608347,1741366238538,-326.42328621,0.00038356,30]
[355608348,1741366238549,-500.0,0.00038356,30]
[355608349,1741366238558,-500.0,0.00038356,30]
[355608350,1741366238569,-500.0,0.00038356,30]
[355608351,1741366238578,-553.95670078,0.00038356,30]
[355608352,1741366238588,-500.0,0.00038356,30]
[355608353,1741366238598,-1000.0,0.00038356,7]
[355608354,1741366238608,-500.0,0.00038356,30]
[355608355,1741366238617,-500.0,0.00038356,30]
[355608356,1741366238627,-591.27,0.00038356,30]
[355608357,1741366238637,-500.0,0.00038356,9]
[355608358,1741366238647,-500.0,0.00038356,30]
[355608359,1741366238656,-500.0,0.00038356,30]
[355608360,1741366238667,-2136.8,0.0003863,30]
[355608361,1741366238677,-500.0,0.0003863,30]
[355608362,1741366238687,-348.08,0.0003863,30]
[355608363,1741366238697,-414.4,0.0003863,30]
[355608364,1741366238707,-500.0,0.0003863,30]
[355608365,1741366238716,-355.81,0.0003863,30]
[355608366,1741366238729,-500.0,0.0003863,30]
[355608367,1741366238739,-181.19,0.0003863,30]
[355608368,1741366238748,-500.0,0.0003863,30]
[355608369,1741366238757,-500.0,0.0003863,30]
[355608370,1741366238767,-318.8,0.0003863,30]
[355608371,1741366238777,-366.75,0.0003863,9]
[355608372,1741366238786,-154.75,0.0003863,30]
[355608373,1741366238796,-500.0,0.0003863,30]
[355608374,1741366238806,-500.0,0.00038829,5]
[355608375,1741366238817,-500.0,0.00038902,15]
[355608376,1741366238828,-514.58536327,0.00038902,2]
[355608377,1741366238839,-514.58536327,0.00038902,2]
[355608378,1741366238851,-500.0,0.00038902,15]
[355608379,1741366238862,-514.58536327,0.00038902,2]
[355608380,1741366238873,-435.68821232,0.00038902,15]
[355608381,1741366238884,-514.58536327,0.00038902,2]
[355608382,1741366238895,-514.58536327,0.00038902,2]
[355608383,1741366238904,-514.58536327,0.00038902,2]
[355608384,1741366238914,-514.58536327,0.00038902,2]
[355608385,1741366238923,-514.58536327,0.00038902,2]
[355608386,1741366238932,-514.58536327,0.00038902,2]
[355608387,1741366238942,-514.58536327,0.00038902,2]
[355608388,1741366238952,-514.58536327,0.00038902,2]
[355608389,1741366238962,-514.58536327,0.00038902,2]
[355608390,1741366238972,-514.58536327,0.00038902,2]
[355608391,1741366238985,-514.58536327,0.00038902,2]
[355608392,1741366238997,-514.58536327,0.00038902,2]
[355608393,1741366239006,-514.58536327,0.00038902,2]
[355608394,1741366239016,-514.58536327,0.00038902,2]
[355608395,1741366239025,-514.58536327,0.00038902,2]
[355608396,1741366239037,-514.58536327,0.00038902,2]
[355608397,1741366239046,-514.58536327,0.00038902,2]
[355608398,1741366239055,-514.58536327,0.00038902,2]
[355608399,1741366239065,-514.58536327,0.00038902,2]
[355608400,1741366239075,-514.58536327,0.00038902,2]
[355608401,1741366239085,-514.58536327,0.00038902,2]
[355608402,1741366239095,-514.58536327,0.00038902,2]
[355608403,1741366239105,-514.58536327,0.00038902,2]
[355608404,1741366239115,-514.58536327,0.00038902,2]
[355608405,1741366239124,-514.58536327,0.00038902,2]
[355608406,1741366239133,-514.58536327,0.00038902,2]
[355608407,1741366239142,-514.58536327,0.00038902,2]
[355608408,1741366239152,-514.58536327,0.00038902,2]
[355608409,1741366239161,-514.58536327,0.00038902,2]
[355608410,1741366239170,-514.58536327,0.00038902,2]
[355608411,1741366239180,-514.58536327,0.00038902,2]
[355608412,1741366239190,-514.58536327,0.00038902,2]
[355608413,1741366239199,-514.58536327,0.00038902,2]
[355608414,1741366239209,-514.58536327,0.00038902,2]
[355608415,1741366239219,-514.58536327,0.00038902,2]
[355608416,1741366239232,-514.58536327,0.00038902,2]
[355608417,1741366239241,-514.58536327,0.00038902,2]
[355608418,1741366239250,-514.58536327,0.00038902,2]
[355608419,1741366239260,-514.58536327,0.00038902,2]
[355608420,1741366239270,-514.58536327,0.00038902,2]
[355608421,1741366239281,-514.58536327,0.00038902,2]
[355608422,1741366239290,-514.58536327,0.00038902,2]
[355608423,1741366239301,-514.58536327,0.00038902,2]
[355608424,1741366239310,-514.58536327,0.00038902,2]
[355608425,1741366239319,-514.58536327,0.00038902,2]
[355608426,1741366239330,-514.58536327,0.00038902,2]
[355608427,1741366239339,-514.58536327,0.00038902,2]
[355608428,1741366239349,-514.58536327,0.00038902,2]
[355608429,1741366239359,-500.0,0.00038903,30]
[355608430,1741366239369,-644.47,0.00038903,30]
[355608431,1741366239380,-500.0,0.00038903,30]
[355608432,1741366239390,-500.0,0.00038903,30]
[355608433,1741366239400,-465.48877118,0.00038903,30]
[355608434,1741366239411,-500.0,0.00038903,30]
[355608435,1741366239421,-500.0,0.00038903,30]
[355608436,1741366239430,-500.0,0.00038903,30]
[355608437,1741366239440,-500.0,0.00038903,30]
[355608438,1741366239449,-500.0,0.00038903,30]
[355608439,1741366239459,-500.0,0.00038903,30]
[355608440,1741366239470,-500.0,0.00038903,30]
[355608442,1741366239481,-500.0,0.00038903,30]
[355608444,1741366239491,-500.0,0.00038903,30]
[355608446,1741366239501,-500.0,0.00038903,30]
[355608447,1741366239511,-500.0,0.00038903,30]
[355608448,1741366239520,-500.0,0.00038903,30]
[355608449,1741366239530,-500.0,0.00038903,30]
[355608450,1741366239539,-500.0,0.00038903,30]
[355608451,1741366239549,-500.0,0.00038903,30]
[355608452,1741366239558,-500.0,0.00038903,30]
[355608453,1741366239567,-500.0,0.00038903,30]
[355608454,1741366239576,-500.0,0.00038903,30]
[355608455,1741366239587,-500.0,0.00038903,30]
[355608456,1741366239597,-500.0,0.00038903,30]
[355608457,1741366239606,-500.0,0.00038903,30]
[355608458,1741366239615,-2136.8,0.00038904,30]
[355608459,1741366239625,-500.0,0.00038904,30]
[355608460,1741366239634,-207.21,0.00038904,30]
[355608461,1741366239643,-500.0,0.00038904,30]
[355608462,1741366239653,-500.0,0.00038904,30]
[355608463,1741366239662,-330.94,0.00038904,30]
[355608464,1741366239671,-500.0,0.00038904,30]
[355608465,1741366239681,-500.0,0.00039177,30]
[355608466,1741366239691,-195.49,0.00039177,30]
[355608467,1741366239700,-500.0,0.00039177,30]
[355608468,1741366239709,-500.0,0.00039177,30]
[355608469,1741366239719,-500.0,0.00039177,30]
[355608470,1741366239731,-500.0,0.00039177,30]
[355608471,1741366239740,-500.0,0.00039177,30]
[355608472,1741366239750,-340.4,0.00039177,30]
[355608474,1741366239759,-500.0,0.00039177,30]
[355608475,1741366239769,-500.0,0.00039177,30]
[355608476,1741366239779,-500.0,0.00039177,30]
[355608477,1741366239788,-500.0,0.00039177,30]
[355608478,1741366239798,-231.55,0.00039177,30]
[355608480,1741366239807,-2136.8,0.00039178,30]
[355608481,1741366239816,-500.0,0.00039178,30]
[355608482,1741366239826,-175.45205957,0.00039178,30]
[355608483,1741366239835,-155.14,0.00039178,30]
[355608484,1741366239845,-500.0,0.00039178,30]
[355608485,1741366239854,-579.36,0.00039451,30]
[355608486,1741366239863,-500.0,0.00039451,30]
[355608487,1741366239874,-500.0,0.00039451,30]
[355608488,1741366239883,-500.0,0.00039451,30]
[355608489,1741366239895,-500.0,0.00039451,30]
[355608490,1741366239904,-500.0,0.00039451,30]
[355608492,1741366239914,-500.0,0.00039451,30]
[355608493,1741366239924,-500.0,0.00039451,30]
[355608494,1741366239933,-500.0,0.00039451,30]
[355608495,1741366239943,-500.0,0.00039451,30]
[355608496,1741366239952,-2136.8,0.00039452,30]
[355608497,1741366239962,-500.0,0.00039452,30]
[355608498,1741366239973,-500.0,0.00039452,30]
[355608499,1741366239986,-525.52,0.00039725,30]
[355608500,1741366239997,-500.0,0.00039725,30]
[355608501,1741366240006,-500.0,0.00039725,30]
[355608502,1741366240015,-500.0,0.00039725,30]
[355608503,1741366240025,-182.98,0.00039725,30]
[355608504,1741366240034,-354.36,0.00039725,30]
[355608505,1741366240043,-365.47,0.00039725,30]
[355608506,1741366240053,-606.25,0.00039725,30]
[355608507,1741366240064,-483.08,0.00039725,30]
[355608508,1741366240075,-2136.8,0.00039726,30]
[355608509,1741366240084,-500.0,0.00039726,30]
[355608510,1741366240096,-516.56,0.00039726,30]
[355608511,1741366240106,-500.0,0.00039735,5]
[355608512,1741366240116,-500.0,0.00039735,5]
[355608513,1741366240127,-500.0,0.00039999,30]
[355608514,1741366240140,-500.0,0.00039999,30]
[355608515,1741366240150,-500.0,0.00039999,30]
[355608516,1741366240161,-2136.8,0.0004,30]
[355608517,1741366240171,-500.0,0.0004,30]
[355608518,1741366240181,-500.0,0.00040133,2]
[355608519,1741366240192,-2136.8,0.00040273,30]
[355608520,1741366240201,-500.0,0.00040273,30]
[355608521,1741366240211,-491.74,0.00040273,30]
[355608522,1741366240222,-500.0,0.00040273,30]
[355608523,1741366240233,-500.0,0.00040273,30]
[355608524,1741366240243,-482.896,0.00040293,2]
[355608525,1741366240253,-557.813,0.00040293,2]
[355608526,1741366240262,-150.0,0.00040293,2]
[355608527,1741366240272,-2136.8,0.00040547,30]
[355608528,1741366240281,-500.0,0.00040547,30]
[355608529,1741366240291,-500.0,0.00040547,30]
[355608530,1741366240300,-500.0,0.00040547,30]
[355608531,1741366240311,-500.0,0.00040573,5]
[355608532,1741366240320,-500.0,0.00040573,5]
[355608533,1741366240330,-500.0,0.00040573,5]
[355608534,1741366240339,-503.64782884,0.00040573,5]
[355608535,1741366240348,-500.0,0.00040573,5]
[355608536,1741366240358,-500.0,0.00040573,5]
[355608537,1741366240367,-248.12,0.000406,7]
[355608538,1741366240376,-153.83,0.000408,31]
[355608539,1741366240385,-153.83,0.000408,31]
[355608541,1741366240395,-2136.8,0.00040821,30]
[355608542,1741366240404,-500.0,0.00040821,30]
[355608543,1741366240415,-500.0,0.00040821,30]
[355608544,1741366240424,-500.0,0.00040821,30]
[355608545,1741366240435,-219.0,0.00041,14]
[355608546,1741366240445,-2412.42502406,0.00041085,3]
[355608547,1741366240454,-500.0,0.00041095,7]
[355608548,1741366240464,-2136.8,0.00041095,120]
[355608549,1741366240473,-500.0,0.00041095,30]
[355608550,1741366240485,-500.0,0.00041095,30]
[355608551,1741366240495,-500.0,0.00041211,2]
[355608552,1741366240505,-1500.0,0.00041271,2]
[355608553,1741366240514,-2136.8,0.00041369,120]
[355608554,1741366240523,-500.0,0.00041369,120]
[355608555,1741366240533,-500.0,0.00041369,120]
[355608556,1741366240543,-500.0,0.00041642,120]
[355608557,1741366240553,-500.0,0.00041642,120]
[355608558,1741366240563,-527.71,0.00041642,120]
[355608559,1741366240572,-500.0,0.00041642,120]
[355608560,1741366240582,-500.0,0.00041642,120]
[355608561,1741366240591,-500.0,0.00041642,120]
[355608562,1741366240601,-500.0,0.00041642,120]
[355608563,1741366240610,-632.68,0.00041642,120]
[355608564,1741366240620,-500.0,0.00041642,120]
[355608565,1741366240629,-500.0,0.00041642,120]
[355608566,1741366240639,-500.0,0.00041642,120]
[355608567,1741366240649,-500.0,0.00041642,120]
[355608568,1741366240658,-500.0,0.00041642,120]
[355608569,1741366240667,-756.04,0.00041642,7]
[355608570,1741366240677,-500.0,0.00041642,120]
[355608571,1741366240686,-500.0,0.00041642,120]
[355608572,1741366240695,-500.0,0.00041642,120]
[355608573,1741366240704,-500.0,0.00041642,120]